bitfinex/quotes_SOLUSD_20250507
["timestamp","ask_amount","ask_price","bid_price","bid_amount"]
[1746648524893,15.79853018,145.93,145.89,15.79853018]
[1746648525315,6.8511921,145.96,145.92,15.79853018]
[1746648525529,22.64972228,145.96,145.92,15.79853018]
[1746648527620,15.79853018,145.95,145.91,15.79853018]
[1746648529197,6.85213101,145.94,145.91,15.79853018]
[1746648531825,6.85213101,145.94,145.92,15.79853018]
[1746648532002,6.85135985,145.96,145.93,15.79853018]
[1746648532312,32.92202401,146.0,145.95,15.79853018]
[1746648533119,15.79853018,145.99,145.95,15.79853018]
[1746648533703,22.64831441,145.99,145.95,15.79853018]
[1746648533903,39.77277498,145.99,145.95,15.79853018]
[1746648534103,39.77277498,145.99,145.94,15.79853018]
[1746648534304,15.79853018,145.98,145.94,15.79853018]
[1746648534621,15.79853018,145.97,145.93,15.79853018]
[1746648534920,15.79853018,145.96,145.92,22.02623018]
[1746648535702,22.6501917,145.95,145.92,6.2277]
[1746648535921,15.79853018,145.93,145.88,23.90213018]
[1746648536122,15.79853018,145.91,145.86,15.79853018]
[1746648536426,15.79853018,145.91,145.86,41.79853018]
[1746648536617,15.79853018,145.91,145.87,15.79853018]
[1746648536921,15.79853018,145.92,145.87,15.79853018]
[1746648537122,6.85353985,145.91,145.87,15.79853018]
[1746648537698,32.13070068,145.91,145.87,25.27716083]
[1746648538726,25.27716083,145.91,145.87,25.27716083]
[1746648538900,32.13045385,145.92,145.87,25.27716083]
[1746648539100,32.13045385,145.92,145.88,25.27716083]
[1746648539419,32.12882235,145.95,145.9,25.27716083]
[1746648540120,32.12882235,145.95,145.91,25.27716083]
[1746648540321,48.98846227,145.96,145.91,25.27716083]
[1746648540621,48.98846227,145.96,145.92,25.27716083]
[1746648541218,25.27716083,145.95,145.91,25.27716083]
[1746648541726,32.12908135,145.95,145.91,25.27716083]
[1746648542414,25.27716083,145.93,145.89,57.68626083]
[1746648542612,25.27716083,145.92,145.89,26.0]
[1746648543928,6.85353985,145.91,145.89,26.0]
[1746648544302,25.27716083,145.9,145.86,51.27716083]
[1746648544829,25.27716083,145.9,145.86,26.0]
[1746648545506,25.27716083,145.9,145.85,31.61146083]
[1746648545507,25.27716083,145.87,145.83,25.27716083]
[1746648545910,25.27716083,145.87,145.83,51.27716083]
[1746648546118,32.13263765,145.87,145.83,51.27716083]
[1746648547126,25.27716083,145.87,145.83,51.27716083]
[1746648547329,25.27716083,145.87,145.83,58.13433145]
[1746648548129,25.27716083,145.86,145.83,32.85717062]
[1746648548510,25.27716083,145.87,145.83,58.13433145]
[1746648549832,25.27716083,145.87,145.83,26.0]
[1746648549833,25.27716083,145.86,145.83,26.0]
[1746648551533,32.13323343,145.86,145.83,26.0]
[1746648552645,6.8560726,145.86,145.79,6.85896351]
[1746648552836,25.27716083,145.84,145.8,51.27716083]
[1746648553213,25.27716083,145.84,145.8,26.0]
[1746648553426,25.27716083,145.83,145.8,26.0]
[1746648553629,25.27716083,145.83,145.79,25.27716083]
[1746648553931,25.27716083,145.84,145.79,58.13630483]
[1746648554238,23.7160726,145.86,145.8,25.27716083]
[1746648554439,23.7160726,145.86,145.83,25.27716083]
[1746648554440,16.86,145.86,145.83,25.27716083]
[1746648554940,143.65562588,145.87,145.85,25.27716083]
[1746648557337,143.65562588,145.87,145.84,25.27716083]
[1746648557638,6.85562588,145.87,145.84,25.27716083]
[1746648558037,6.85562588,145.87,145.85,25.27716083]
[1746648558432,6.85494927,145.88,145.85,25.27716083]
[1746648559340,6.85494927,145.88,145.86,25.27716083]
[1746648559540,6.85494927,145.88,145.85,25.27716083]
[1746648561438,32.1321101,145.88,145.81,32.13521261]
[1746648561641,32.1321101,145.88,145.83,25.27716083]
[1746648561815,6.85494927,145.88,145.83,15.80893496]
[1746648562015,15.80893496,145.87,145.83,15.80893496]
[1746648562215,22.66388423,145.88,145.83,15.80893496]
[1746648562430,22.66388423,145.88,145.84,15.80893496]
[1746648563143,6.85484708,145.89,145.87,15.80893496]
[1746648563313,16.86,145.9,145.82,40.81987883]
[1746648563314,16.86,145.9,145.88,15.80893496]
[1746648563519,6.85260056,145.93,145.89,15.80893496]
[1746648563719,6.85260056,145.93,145.91,15.80893496]
[1746648564031,6.85260056,145.93,145.92,15.80893496]
[1746648564238,6.85260056,145.93,145.91,15.80893496]
[1746648564743,6.85260056,145.93,145.9,15.80893496]
[1746648565045,6.85260056,145.93,145.91,15.80893496]
[1746648565228,6.85260056,145.93,145.9,15.80893496]
[1746648565825,6.85260056,145.93,145.9,25.27141606]
[1746648566950,49.25551802,145.93,145.88,25.27141606]
[1746648567242,6.85353985,145.91,145.88,25.27141606]
[1746648567940,25.27141606,145.9,145.86,25.27141606]
[1746648568333,49.25880554,145.91,145.87,25.27141606]
[1746648569552,49.25880554,145.91,145.86,25.27141606]
[1746648570345,49.25880554,145.91,145.87,25.27141606]
[1746648572058,49.25880554,145.91,145.86,25.27141606]
[1746648575251,49.25880554,145.91,145.87,25.27141606]
[1746648575252,23.98738948,145.91,145.87,25.27141606]
[1746648575560,6.85307017,145.92,145.89,25.27141606]
[1746648576868,49.25716166,145.92,145.88,25.27141606]
[1746648580761,25.27141606,145.91,145.87,25.27141606]
[1746648580938,25.27141606,145.9,145.86,25.27141606]
[1746648581141,25.27141606,145.89,145.85,25.27141606]
[1746648581456,25.27141606,145.89,145.84,25.27141606]
[1746648582145,6.85494927,145.88,145.85,25.27141606]
[1746648582537,6.85494927,145.88,145.86,25.27141606]
[1746648584165,6.8544794,145.89,145.86,25.27141606]
[1746648585660,23.9897961,145.9,145.87,25.27141606]
[1746648585869,23.9897961,145.9,145.87,15.80233718]
[1746648586666,6.85400959,145.9,145.87,15.80233718]
[1746648586856,6.85400959,145.9,145.88,15.80233718]
[1746648588077,136.8,145.95,145.88,15.80233718]
[1746648588251,6.85260056,145.93,145.91,15.80233718]
[1746648588669,6.85260056,145.93,145.89,15.80233718]
[1746648588970,15.80233718,145.92,145.88,15.80233718]
[1746648589162,176.58643914,145.93,145.88,15.80233718]
[1746648591480,176.58643914,145.93,145.89,15.80233718]
[1746648592981,160.78410196,145.93,145.89,15.80233718]
[1746648593171,160.78410196,145.93,145.85,6.85614584]
[1746648593172,143.65260056,145.93,145.9,15.80233718]
[1746648599979,143.65260056,145.93,145.85,18.79181043]
[1746648600164,159.45493774,145.93,145.89,15.80233718]
[1746648600979,176.58643914,145.93,145.89,15.80233718]
[1746648601180,143.65260056,145.93,145.9,15.80233718]
[1746648605685,27.78811175,145.94,145.91,15.80233718]
[1746648605869,4.0959,145.94,145.93,15.80233718]
[1746648610887,4.0959,145.94,145.93,42.99674817]
[1746648612090,4.0959,145.94,145.93,68.99674817]
[1746648612394,4.0959,145.94,145.93,75.38214817]
[1746648615791,4.0959,145.94,145.93,49.73773718]
[1746648615983,4.0959,145.94,145.93,91.18448535]
[1746648619500,16.82,146.02,145.93,108.31598675]
[1746648619702,6.84844855,146.02,146.01,15.80233718]
[1746648620199,6.84790796,146.03,146.01,15.80233718]
[1746648621108,143.64762654,146.04,146.02,15.80233718]
[1746648621403,143.64762654,146.04,146.03,15.80233718]
[1746648621601,136.8,146.04,146.03,15.80233718]
[1746648621782,143.64743905,146.04,146.03,15.80233718]
[1746648622778,6.84743905,146.04,146.03,15.80233718]
[1746648623097,16.82,146.06,146.03,15.80233718]
[1746648623300,23.66672261,146.06,146.05,15.80233718]
[1746648623505,6.84672261,146.06,146.04,15.80233718]
[1746648623682,6.84672261,146.06,146.05,15.80233718]
[1746648624607,6.84603272,146.07,146.05,15.80233718]
[1746648625108,6.84603272,146.07,146.04,15.80233718]
[1746648626806,6.84603272,146.07,146.05,15.80233718]
[1746648627502,6.84603272,146.07,146.04,15.80233718]
[1746648630181,6.84603272,146.07,146.05,15.80233718]
[1746648630910,6.84603272,146.07,146.0,8.40850511]
[1746648631204,6.84603272,146.07,146.06,15.80233718]
[1746648631435,6.84509548,146.09,146.06,15.80233718]
[1746648631594,6.84509548,146.09,146.08,15.80233718]
[1746648637191,61.42964886,146.14,146.08,15.80233718]
[1746648637192,6.84322178,146.13,146.08,15.80233718]
[1746648637416,6.84322178,146.13,146.12,15.80233718]
[1746648637617,23.62297497,146.14,146.12,15.80233718]
[1746648637845,6.84297497,146.14,146.12,15.80233718]
[1746648637992,15.80233718,146.17,146.13,15.80233718]
[1746648639419,6.84181718,146.16,146.13,15.80233718]
[1746648640020,22.64415436,146.16,146.1,6.3177]
[1746648640218,22.64415436,146.16,146.11,15.80233718]
[1746648640406,15.80233718,146.15,146.11,15.80233718]
[1746648641019,23.94636014,146.16,146.11,15.80233718]
[1746648641020,39.74869732,146.16,146.11,15.80233718]
[1746648641224,15.80233718,146.12,146.07,15.80233718]
[1746648641393,15.80233718,146.09,146.04,15.80233718]
[1746648641593,1.5294,146.12,146.04,15.80233718]
[1746648641594,15.80233718,146.08,146.04,15.80233718]
[1746648642099,6.84603272,146.07,146.04,15.80233718]
[1746648642590,22.6483699,146.07,146.03,15.80233718]
[1746648642793,39.76345171,146.07,146.03,15.80233718]
[1746648643201,23.96111453,146.07,146.03,15.80233718]
[1746648643408,23.96111453,146.07,146.04,15.80233718]
[1746648644225,15.80233718,146.09,146.04,15.80233718]
[1746648645620,15.80233718,146.08,146.04,15.80233718]
[1746648646621,15.80233718,146.09,146.05,15.80233718]
[1746648646807,39.75853155,146.1,146.05,15.80233718]
[1746648647008,39.75853155,146.1,146.06,15.80233718]
[1746648647214,15.80233718,146.09,146.05,15.80233718]
[1746648649621,6.84556407,146.08,146.05,15.80233718]
[1746648649997,6.84556407,146.08,146.02,8.0558]
[1746648650307,39.76181143,146.08,146.04,15.80233718]
[1746648650816,15.80233718,146.07,146.03,15.80233718]
[1746648651117,39.76181143,146.08,146.04,15.80233718]
[1746648651740,23.95947425,146.08,146.05,15.80233718]
[1746648652425,6.84556407,146.08,146.05,15.80233718]
[1746648653803,6.84556407,146.08,146.06,15.80233718]
[1746648653992,32.58233718,146.1,146.06,15.80233718]
[1746648653993,6.84531027,146.09,146.06,15.80233718]
[1746648655118,23.62482408,146.1,146.07,15.80233718]
[1746648655500,23.62482408,146.1,146.08,15.80233718]
[1746648655826,136.8,146.13,146.08,15.80233718]
[1746648655998,6.84388457,146.12,146.09,15.80233718]
[1746648656201,22.64622175,146.12,146.08,15.80233718]
[1746648656612,6.84388457,146.12,146.09,15.80233718]
[1746648657410,143.64343461,146.13,146.09,15.80233718]
[1746648657604,143.64343461,146.13,146.1,15.80233718]
[1746648658297,23.58276834,146.14,146.11,15.80233718]
[1746648658808,23.58276834,146.14,146.07,26.0]
[1746648658809,23.58276834,146.14,146.12,15.80233718]
[1746648659205,136.8,146.17,146.13,15.80233718]
[1746648659206,6.84241858,146.15,146.13,15.80233718]
[1746648659805,6.84241858,146.15,146.12,15.80233718]
[1746648660014,6.84181718,146.16,146.12,15.80233718]
[1746648660424,16.74,146.18,146.15,15.80233718]
[1746648661530,23.58118205,146.18,146.15,15.80233718]
[1746648661732,23.58118205,146.18,146.16,15.80233718]
[1746648662427,23.58118205,146.18,146.17,15.80233718]
[1746648662605,6.83994528,146.2,146.17,15.80233718]
[1746648663229,6.83994528,146.2,146.16,15.80233718]
[1746648663802,6.83994528,146.2,146.17,15.80233718]
[1746648665224,6.83994528,146.2,146.16,15.80233718]
[1746648665432,22.64228246,146.2,146.16,15.80233718]
[1746648665833,6.83994528,146.2,146.16,15.80233718]
[1746648666203,6.83994528,146.2,146.17,15.80233718]
[1746648669044,6.83994528,146.2,146.19,15.80233718]
[1746648669333,6.83962006,146.21,146.19,15.80233718]
[1746648670436,6.83962006,146.21,146.16,23.98493718]
[1746648670732,6.83962006,146.21,146.19,15.80233718]
[1746648671331,6.83962006,146.21,146.17,15.80233718]
[1746648671640,6.8408811,146.18,146.15,15.80233718]
[1746648671814,6.8408811,146.18,146.16,15.80233718]
[1746648672131,6.83994528,146.2,146.17,15.80233718]
[1746648672343,6.83994528,146.2,146.14,18.64964886]
[1746648672507,6.83994528,146.2,146.17,15.80233718]
[1746648673733,39.74214566,146.2,146.16,15.80233718]
[1746648674207,23.93980848,146.2,146.16,15.80233718]
[1746648674822,23.93980848,146.2,146.17,15.80233718]
[1746648676635,39.74214566,146.2,146.16,15.80233718]
[1746648676935,15.80233718,146.18,146.14,15.80233718]
[1746648677552,15.80233718,146.18,146.12,7.6867]
[1746648677719,15.80233718,146.17,146.12,21.84213718]
[1746648677920,15.80233718,146.14,146.1,15.80233718]
[1746648678137,39.7503358,146.15,146.11,15.80233718]
[1746648678428,23.94799862,146.15,146.12,15.80233718]
[1746648679023,23.94799862,146.15,146.11,15.80233718]
[1746648679222,23.94799862,146.15,146.12,15.80233718]
[1746648680938,6.84228532,146.15,146.12,15.80233718]
[1746648681138,6.84228532,146.15,146.13,15.80233718]
[1746648681933,6.84181718,146.16,146.13,15.80233718]
[1746648682435,15.80233718,146.15,146.09,26.0]
[1746648682627,15.80233718,146.15,146.11,15.80233718]
[1746648683227,39.74869732,146.16,146.11,15.80233718]
[1746648684727,15.80233718,146.14,146.09,26.0]
[1746648684912,15.80233718,146.13,146.08,6.123]
[1746648685114,160.74636014,146.16,146.09,15.80233718]
[1746648685332,15.80233718,146.14,146.1,15.80233718]
[1746648685531,15.80233718,146.13,146.09,15.80233718]
[1746648685740,15.80233718,146.14,146.09,15.80233718]
[1746648686132,17.10801015,146.14,146.09,15.80233718]
[1746648686436,15.80233718,146.13,146.09,15.80233718]
[1746648688236,6.84369011,146.12,146.09,15.80233718]
[1746648689144,6.84369011,146.12,146.1,15.80233718]
[1746648689342,6.84369011,146.12,146.09,15.80233718]
[1746648691946,6.84228532,146.15,146.11,15.80233718]
[1746648692245,6.84228532,146.15,146.12,15.80233718]
[1746648693148,6.84228532,146.15,146.11,15.80233718]
[1746648694145,6.84228532,146.15,146.13,15.80233718]
[1746648694349,6.84228532,146.15,146.12,15.80233718]
[1746648695236,6.84228532,146.15,146.13,15.80233718]
[1746648695845,6.84228532,146.15,146.14,15.80233718]
[1746648696246,6.84181718,146.16,146.14,15.80233718]
[1746648698657,6.84181718,146.16,146.15,15.80233718]
[1746648699044,23.58135086,146.17,146.15,15.80233718]
[1746648699556,6.84135086,146.17,146.15,15.80233718]
[1746648700054,39.74383121,146.19,146.15,15.80233718]
[1746648700639,39.74383121,146.19,146.14,15.80233718]
[1746648701043,39.74383121,146.19,146.15,15.80233718]
[1746648703156,15.80233718,146.18,146.11,1.6523]
[1746648703367,15.80233718,146.16,146.12,15.80233718]
[1746648703542,15.80233718,146.16,146.11,15.80233718]
[1746648703743,15.80233718,146.15,146.11,15.80233718]
[1746648704048,22.6450907,146.14,146.09,41.80233718]
[1746648704247,39.75197451,146.14,146.09,41.80233718]
[1746648704642,23.94963733,146.14,146.1,15.80233718]
[1746648705264,6.84275352,146.14,146.1,15.80233718]
[1746648705758,22.6450907,146.14,146.1,15.80233718]
[1746648707850,23.94736911,146.16,146.11,15.80233718]
[1746648708049,15.80233718,146.15,146.11,15.80233718]
[1746648709263,15.80233718,146.14,146.1,15.80233718]
[1746648709467,40.66736911,146.16,146.12,15.80233718]
[1746648710259,23.56181718,146.16,146.13,15.80233718]
[1746648710464,23.56181718,146.16,146.14,15.80233718]
[1746648711266,16.72,146.16,146.14,15.80233718]
[1746648711466,16.72,146.16,146.15,15.80233718]
[1746648711769,27.6361,146.2,146.15,15.80233718]
[1746648711770,16.72,146.2,146.15,15.80233718]
[1746648711953,16.72,146.2,146.17,15.80233718]
[1746648712266,23.55994528,146.2,146.16,15.80233718]
[1746648713468,23.55994528,146.2,146.13,8.41431145]
[1746648713669,39.36228246,146.2,146.16,15.80233718]
[1746648714267,39.36228246,146.2,146.15,15.80233718]
[1746648714858,39.36228246,146.2,146.16,15.80233718]
[1746648716570,56.46214566,146.2,146.16,15.80233718]
[1746648720766,56.46214566,146.2,146.15,15.80233718]
[1746648721258,56.46214566,146.2,146.16,15.80233718]
[1746648721259,23.55994528,146.2,146.16,15.80233718]
[1746648721446,23.55994528,146.2,146.18,15.80233718]
[1746648721654,39.73819152,146.23,146.19,15.80233718]
[1746648721853,23.93585434,146.23,146.2,15.80233718]
[1746648722370,39.73819152,146.23,146.19,15.80233718]
[1746648723679,39.73819152,146.23,146.18,15.80233718]
[1746648724176,39.73819152,146.23,146.19,15.80233718]
[1746648725791,6.83854202,146.23,146.2,15.80233718]
[1746648726078,6.83812922,146.24,146.22,15.80233718]
[1746648726282,6.83480281,146.31,146.24,32.5322]
[1746648726487,22.63713999,146.31,146.27,15.80233718]
[1746648726882,22.63713999,146.31,146.26,15.80233718]
[1746648726883,23.92190248,146.31,146.26,15.80233718]
[1746648727055,39.72423966,146.31,146.26,15.80233718]
[1746648727256,15.80233718,146.3,146.26,15.80233718]
[1746648727569,39.72423966,146.31,146.26,15.80233718]
[1746648728782,15.80233718,146.3,146.26,15.80233718]
[1746648729366,15.80233718,146.28,146.24,48.33453718]
[1746648729686,15.80233718,146.26,146.22,41.80233718]
[1746648730398,15.80233718,146.26,146.21,15.80233718]
[1746648730559,15.80233718,146.25,146.21,15.80233718]
[1746648731072,6.83807439,146.24,146.21,15.80233718]
[1746648731783,6.83807439,146.24,146.22,15.80233718]
[1746648731987,6.83776998,146.25,146.22,15.80233718]
[1746648732178,6.83776998,146.25,146.23,15.80233718]
[1746648732973,136.8,146.29,146.23,15.80233718]
[1746648732974,6.8372804,146.26,146.23,15.80233718]
[1746648733179,6.8366719,146.27,146.24,15.80233718]
[1746648733695,6.8366719,146.27,146.23,15.80233718]
[1746648734584,6.8366719,146.27,146.24,15.80233718]
[1746648735099,169.6917586,146.29,146.25,15.80233718]
[1746648735100,6.83631476,146.28,146.25,15.80233718]
[1746648735391,59.76675661,146.32,146.27,15.80233718]
[1746648735595,15.80233718,146.31,146.27,15.80233718]
[1746648736513,22.63713999,146.31,146.27,15.80233718]
[1746648736988,22.63713999,146.31,146.26,15.80233718]
[1746648737289,6.83480281,146.31,146.27,15.80233718]
[1746648737498,22.63713999,146.31,146.27,15.80233718]
[1746648737789,31.97848882,146.31,146.27,25.14368601]
[1746648737989,6.83480281,146.31,146.27,25.14368601]
[1746648738199,31.97848882,146.31,146.27,25.14368601]
[1746648739503,6.83480281,146.31,146.27,25.14368601]
[1746648739667,6.83480281,146.31,146.28,25.14368601]
[1746648740572,49.06549585,146.31,146.26,6.0009]
[1746648740888,49.06549585,146.31,146.27,25.14368601]
[1746648741384,6.83480281,146.31,146.28,25.14368601]
[1746648741799,6.83480281,146.31,146.27,25.14368601]
[1746648744511,31.97848882,146.31,146.27,25.14368601]
[1746648745287,23.92017495,146.32,146.27,25.14368601]
[1746648745477,49.06386096,146.32,146.28,25.14368601]
[1746648745678,49.06386096,146.32,146.27,25.14368601]
[1746648747583,25.14368601,146.31,146.27,25.14368601]
[1746648748387,23.92017495,146.32,146.27,25.14368601]
[1746648748599,25.14368601,146.31,146.27,25.14368601]
[1746648748909,49.06386096,146.32,146.27,25.14368601]
[1746648749907,23.92017495,146.32,146.27,25.14368601]
[1746648750127,49.06386096,146.32,146.27,25.14368601]
[1746648751983,25.14368601,146.31,146.27,25.14368601]
[1746648752713,6.83526999,146.3,146.27,25.14368601]
[1746648755021,6.83423328,146.33,146.26,12.83801306]
[1746648755329,6.83423328,146.33,146.3,25.14368601]
[1746648755493,6.83423328,146.33,146.31,25.14368601]
[1746648756092,23.51363139,146.34,146.31,25.14368601]
[1746648756413,6.83300292,146.35,146.32,25.14368601]
[1746648759819,6.83300292,146.35,146.32,15.70429825]
[1746648760813,39.61963803,146.35,146.29,26.0]
[1746648761113,39.61963803,146.35,146.3,15.70429825]
[1746648761306,39.61963803,146.35,146.29,26.0]
[1746648761307,15.70429825,146.33,146.29,26.0]
[1746648761511,15.70429825,146.33,146.29,41.70429825]
[1746648762317,15.70429825,146.33,146.29,26.0]
[1746648762488,15.70429825,146.33,146.29,15.70429825]
[1746648762690,15.70429825,146.32,146.27,15.70429825]
[1746648762996,15.70429825,146.32,146.28,41.70429825]
[1746648763595,6.83480281,146.31,146.28,41.70429825]
[1746648763897,6.83480281,146.31,146.28,26.0]
[1746648764491,6.83480281,146.31,146.28,41.70429825]
[1746648766429,22.53910106,146.31,146.26,6.0009]
[1746648766597,22.53910106,146.31,146.26,32.0009]
[1746648766799,22.53910106,146.31,146.26,47.70519825]
[1746648769822,22.53910106,146.31,146.27,15.70429825]
[1746648770498,6.83480281,146.31,146.29,15.70429825]
[1746648771828,6.8343357,146.32,146.29,15.70429825]
[1746648772711,6.8343357,146.32,146.28,15.70429825]
[1746648772907,22.53863395,146.32,146.28,15.70429825]
[1746648773112,22.53863395,146.32,146.26,32.0009]
[1746648773113,15.70429825,146.31,146.26,47.70519825]
[1746648773807,6.83526999,146.3,146.27,15.70429825]
[1746648777324,23.92017495,146.32,146.28,15.70429825]
[1746648777702,39.6244732,146.32,146.28,15.70429825]
[1746648779029,15.70429825,146.31,146.27,15.70429825]
[1746648779507,39.6244732,146.32,146.27,15.70429825]
[1746648780334,39.6244732,146.32,146.28,15.70429825]
[1746648785633,39.6244732,146.32,146.27,15.70429825]
[1746648786140,6.8343357,146.32,146.3,15.70429825]
[1746648786320,6.83448578,146.32,146.31,15.70429825]
[1746648786647,6.83293474,146.35,146.31,15.70429825]
[1746648786816,6.83293474,146.35,146.32,15.70429825]
[1746648788732,6.83293474,146.35,146.31,15.70429825]
[1746648790851,6.83293474,146.35,146.32,15.70429825]
[1746648791330,6.83293474,146.35,146.33,15.70429825]
[1746648791544,6.83269816,146.36,146.34,15.70429825]
[1746648792103,6.83269816,146.36,146.33,15.70429825]
[1746648796139,22.53699641,146.36,146.31,21.70899825]
[1746648796335,22.5381669,146.33,146.29,41.70429825]
[1746648796528,39.62283853,146.33,146.29,26.0]
[1746648796733,15.70429825,146.32,146.27,23.85489825]
[1746648797033,15.70429825,146.3,146.26,15.70429825]
[1746648797411,23.91854028,146.33,146.26,41.70429825]
[1746648797412,15.70429825,146.31,146.26,41.70429825]
[1746648797639,15.70429825,146.31,146.26,15.70429825]
[1746648797830,15.70429825,146.31,146.27,15.70429825]
[1746648798014,15.70429825,146.31,146.27,26.0]
[1746648798210,15.70429825,146.31,146.27,41.70429825]
[1746648798422,6.83340166,146.34,146.29,15.70429825]
[1746648798744,22.53769991,146.34,146.29,15.70429825]
[1746648798917,15.70429825,146.33,146.29,15.70429825]
[1746648799120,153.88249603,146.35,146.32,15.70429825]
[1746648799121,143.63308244,146.35,146.32,15.70429825]
[1746648799843,159.33738069,146.35,146.3,15.70429825]
[1746648800431,143.63308244,146.35,146.31,15.70429825]
[1746648801544,159.33738069,146.35,146.31,15.70429825]
[1746648803639,159.33738069,146.35,146.3,15.70429825]
[1746648803823,22.53810148,146.34,146.29,28.76723395]
[1746648804445,22.53810148,146.34,146.3,15.70429825]
[1746648805242,22.53810148,146.34,146.3,22.53941676]
[1746648805449,6.83380323,146.34,146.31,15.70429825]
[1746648806241,143.63314992,146.35,146.31,15.70429825]
[1746648806443,143.63314992,146.35,146.32,15.70429825]
[1746648806624,6.83314992,146.35,146.32,15.70429825]
[1746648807446,6.8326849,146.36,146.32,15.70429825]
[1746648810027,6.8326849,146.36,146.32,22.53851972]
[1746648810227,39.1565105,146.37,146.32,22.53851972]
[1746648810756,23.45221225,146.37,146.32,15.70429825]
[1746648811046,15.70429825,146.36,146.32,15.70429825]
[1746648812355,15.70429825,146.36,146.31,15.70429825]
[1746648812356,6.83293474,146.35,146.31,15.70429825]
[1746648812931,15.70429825,146.34,146.3,15.70429825]
[1746648813132,22.53723299,146.35,146.31,15.70429825]
[1746648814450,22.53723299,146.35,146.3,15.70429825]
[1746648815355,22.53723299,146.35,146.29,6.2272]
[1746648815356,15.70429825,146.34,146.29,21.93149825]
[1746648815955,15.70429825,146.32,146.28,26.0]
[1746648816748,22.53910106,146.31,146.27,15.70429825]
[1746648817056,22.53910106,146.31,146.26,15.70429825]
[1746648817256,22.53910106,146.31,146.26,41.70429825]
[1746648817753,15.70429825,146.3,146.26,26.0]
[1746648818258,15.70429825,146.3,146.26,41.70429825]
[1746648819134,15.70429825,146.31,146.26,41.70429825]
[1746648819834,15.70429825,146.3,146.26,26.0]
[1746648820037,15.70429825,146.29,146.26,26.0]
[1746648820561,15.70429825,146.3,146.26,41.70429825]
[1746648821038,153.4,146.32,146.26,41.70429825]
[1746648821229,6.83573723,146.29,146.26,41.70429825]
[1746648821432,22.53976335,146.3,146.26,41.70429825]
[1746648821632,6.8354651,146.3,146.27,15.70429825]
[1746648823257,6.835007,146.31,146.28,15.70429825]
[1746648823473,16.6,146.32,146.29,15.70429825]
[1746648823474,23.4345288,146.32,146.29,15.70429825]
[1746648825258,16.6,146.32,146.3,15.70429825]
[1746648825457,15.70429825,146.35,146.31,15.70429825]
[1746648825837,22.53723299,146.35,146.3,15.70429825]
[1746648828847,39.61956985,146.35,146.3,15.70429825]
[1746648829559,15.70429825,146.34,146.3,15.70429825]
[1746648830461,6.83386865,146.33,146.3,15.70429825]
[1746648831363,22.5381669,146.33,146.29,15.70429825]
[1746648832363,22.5381669,146.33,146.27,6.8366399]
[1746648832364,6.83386865,146.33,146.3,15.70429825]
[1746648835361,6.83386865,146.33,146.31,15.70429825]
[1746648836261,6.83340166,146.34,146.31,15.70429825]
[1746648839087,6.83293474,146.35,146.31,15.70429825]
[1746648840479,22.53723299,146.35,146.31,15.70429825]
[1746648840658,39.61956985,146.35,146.31,15.70429825]
[1746648841775,6.83293474,146.35,146.32,15.70429825]
[1746648841974,6.83106769,146.39,146.34,15.70429825]
[1746648842269,6.83106769,146.39,146.35,15.70429825]
[1746648842270,22.53536594,146.39,146.35,15.70429825]
[1746648842449,39.61326576,146.39,146.35,15.70429825]
[1746648843064,23.90896751,146.39,146.35,15.70429825]
[1746648843271,39.61326576,146.39,146.35,15.70429825]
[1746648843572,23.90896751,146.39,146.35,15.70429825]
[1746648844176,39.61326576,146.39,146.35,15.70429825]
[1746648844477,22.53536594,146.39,146.35,15.70429825]
[1746648845579,6.83106769,146.39,146.35,15.70429825]
[1746648845748,6.83106769,146.39,146.36,15.70429825]
[1746648845950,23.90873692,146.39,146.35,15.70429825]
[1746648847355,6.83106769,146.39,146.36,15.70429825]
[1746648850586,6.83106769,146.39,146.35,15.70429825]
[1746648854395,22.53536594,146.39,146.35,15.70429825]
[1746648854562,39.61303517,146.39,146.35,15.70429825]
[1746648855867,23.90873692,146.39,146.35,15.70429825]
[1746648856175,39.61303517,146.39,146.35,15.70429825]
[1746648857886,15.70429825,146.38,146.34,41.70429825]
[1746648858385,6.83200109,146.37,146.34,41.70429825]
[1746648860774,32.78196748,146.39,146.34,41.70429825]
[1746648860775,6.83153436,146.38,146.34,41.70429825]
[1746648862282,39.61466851,146.38,146.34,41.70429825]
[1746648867393,6.83153436,146.38,146.35,15.70429825]
[1746648867596,6.83106769,146.39,146.36,15.70429825]
[1746648868090,6.83106769,146.39,146.37,15.70429825]
[1746648869290,6.83106769,146.39,146.34,34.4497955]
[1746648869291,6.83106769,146.39,146.36,15.70429825]
[1746648871389,16.56,146.4,146.36,15.70429825]
[1746648871632,143.63026382,146.41,146.38,15.70429825]
[1746648871889,6.83026382,146.41,146.39,15.70429825]
[1746648872474,6.82987562,146.42,146.39,15.70429825]
[1746648872979,6.82780281,146.46,146.42,0.14216157]
[1746648873297,6.82754504,146.47,146.44,15.70429825]
[1746648874198,15.70429825,146.46,146.42,15.70429825]
[1746648874500,15.70429825,146.43,146.37,26.0]
[1746648874701,15.70429825,146.39,146.37,26.0]
[1746648875008,15.70429825,146.38,146.32,17.27309825]